bitfinex-derivatives/quotes_ETHF0:USTF0_20250317
["timestamp","ask_amount","ask_price","bid_price","bid_amount"]
[1742210775353,1.04387,1916.1,1916.0,0.00783842]
[1742210775651,3.17087,1916.1,1916.0,1.05175842]
[1742210776255,2.127,1916.1,1916.0,1.05175842]
[1742210776451,0.7232,1916.1,1916.0,1.05175842]
[1742210776651,3.8991,1916.3,1916.1,1.04383]
[1742210776857,4.39381,1916.2,1916.1,1.04383]
[1742210777156,5.82281,1916.2,1916.1,1.04383]
[1742210778454,1.04387,1916.1,1916.0,1.05171842]
[1742210778656,2.47287,1916.1,1916.0,1.05171842]
[1742210778956,1.429,1916.1,1916.0,1.05171842]
[1742210781659,4.39382,1916.2,1916.1,1.04387]
[1742210781958,5.70922,1916.2,1916.1,1.04387]
[1742210782353,4.6654,1916.2,1916.1,1.04387]
[1742210783657,5.70921,1916.2,1916.1,1.04387]
[1742210784053,0.7232,1916.3,1916.2,1.04381]
[1742210784259,0.7232,1916.3,1916.2,1.71151]
[1742210784260,5.3886,1916.3,1916.2,1.71151]
[1742210784561,4.0732,1916.3,1916.2,1.71151]
[1742210785158,5.11696,1916.3,1916.2,1.71151]
[1742210785362,6.48276,1916.3,1916.2,1.71151]
[1742210785764,1.04381,1916.2,1916.1,4.25164]
[1742210786062,3.11711,1916.2,1916.1,4.25164]
[1742210788064,2.0733,1916.2,1916.1,4.25164]
[1742210788254,3.11711,1916.2,1916.1,4.25164]
[1742210788761,1.3658,1916.2,1916.1,4.25164]
[1742210789060,1.3658,1916.2,1916.1,5.56894]
[1742210789657,5.7907,1916.3,1916.2,1.04381]
[1742210789856,7.1397,1916.3,1916.2,2.36111]
[1742210790162,6.0959,1916.3,1916.2,2.36111]
[1742210790363,5.4222,1916.3,1916.2,2.36111]
[1742210790560,4.0732,1916.3,1916.2,2.36111]
[1742210791770,3.89249184,1916.4,1916.3,1.04376]
[1742210791973,7.24249184,1916.4,1916.3,3.16836]
[1742210792565,8.66199184,1916.4,1916.3,3.16836]
[1742210793666,9.34019184,1916.4,1916.3,3.16836]
[1742210795573,5.4477,1916.4,1916.3,3.16836]
[1742210796867,6.4914,1916.4,1916.3,2.48946]
[1742210797068,7.1575,1916.4,1916.3,2.48946]
[1742210797375,7.1575,1916.4,1916.3,1.4457]
[1742210797571,1.04381,1916.2,1916.1,1.04383]
[1742210797776,1.04387,1916.1,1916.0,1.05171842]
[1742210798070,2.42597,1916.1,1916.0,1.05171842]
[1742210798869,3.74517,1916.1,1916.0,2.40871842]
[1742210799975,3.74517,1916.1,1916.0,1.36483842]
[1742210802273,3.74517,1916.1,1916.0,0.00783842]
[1742210802472,1.04414,1915.6,1915.5,3.2078]
[1742210802777,4.39414,1915.6,1915.5,42.22]
[1742210803373,5.70544,1915.6,1915.5,1.42]
[1742210803570,1.04419,1915.5,1915.4,1.04424]
[1742210803871,2.35549,1915.5,1915.4,43.16447842]
[1742210805572,1.3113,1915.5,1915.4,43.16447842]
[1742210805780,1.3113,1915.5,1915.4,43.86817842]
[1742210805974,2.35549,1915.5,1915.4,43.86817842]
[1742210806378,1.3113,1915.5,1915.4,43.86817842]
[1742210806682,2.35549,1915.5,1915.4,43.86817842]
[1742210807376,1.3113,1915.5,1915.4,43.86817842]
[1742210808172,3.90033026,1915.7,1915.6,1.04414]
[1742210808379,7.25033026,1915.7,1915.6,1.04414]
[1742210808879,7.25033026,1915.7,1915.6,2.37644]
[1742210809074,7.25033026,1915.7,1915.6,43.17644]
[1742210810083,8.29441026,1915.7,1915.6,43.17644]
[1742210810281,7.25033026,1915.7,1915.6,43.17644]
[1742210810981,3.90033026,1915.7,1915.6,43.17644]
[1742210813380,0.00783842,1915.7,1915.6,43.17644]
[1742210813786,3.05761842,1915.7,1915.6,2.37644]
[1742210813986,3.74071842,1915.7,1915.6,2.37644]
[1742210814687,3.74071842,1915.7,1915.6,1.3323]
[1742210819393,3.74071842,1915.7,1915.6,2.37644]
[1742210819593,3.74071842,1915.7,1915.6,1.3323]
[1742210820591,3.74071842,1915.7,1915.6,2.37644]
[1742210820896,3.05761842,1915.7,1915.6,2.37644]
[1742210821094,1.72851842,1915.7,1915.6,2.37644]
[1742210821289,5.07951842,1915.7,1915.6,2.37644]
[1742210821695,6.52991842,1915.7,1915.6,2.37644]
[1742210821891,0.00783842,1915.7,1915.6,2.37644]
[1742210823798,1.05191842,1915.7,1915.6,2.37644]
[1742210823989,2.50231842,1915.7,1915.6,2.37644]
[1742210824188,3.85491842,1915.7,1915.6,2.37644]
[1742210825091,2.81083842,1915.7,1915.6,2.37644]
[1742210825998,0.70273842,1915.7,1915.6,2.37644]
[1742210826699,1.74681842,1915.7,1915.6,2.37644]
[1742210827200,0.70273842,1915.7,1915.6,2.37644]
[1742210827397,0.00783842,1915.7,1915.6,2.37644]
[1742210829302,1.05191842,1915.7,1915.6,2.37644]
[1742210829793,0.00783842,1915.7,1915.6,2.37644]
[1742210829994,2.41371842,1915.7,1915.6,2.37644]
[1742210830193,3.08241842,1915.7,1915.6,2.37644]
[1742210830596,3.08241842,1915.7,1915.6,1.3323]
[1742210830800,3.08241842,1915.7,1915.6,2.37644]
[1742210831102,3.08241842,1915.7,1915.6,1.3323]
[1742210831794,1.04419,1915.5,1915.4,1.75574842]
[1742210832005,4.39519,1915.5,1915.4,1.75574842]
[1742210832399,5.07619,1915.5,1915.4,1.75574842]
[1742210833099,5.07619,1915.5,1915.4,3.06884842]
[1742210833792,4.032,1915.5,1915.4,3.06884842]
[1742210835300,5.411,1915.5,1915.4,3.06884842]
[1742210835502,6.45519,1915.5,1915.4,3.06884842]
[1742210835699,6.45519,1915.5,1915.4,2.36514842]
[1742210836005,6.45519,1915.5,1915.4,1.32093842]
[1742210836596,6.45519,1915.5,1915.4,2.36518842]
[1742210836797,6.45519,1915.5,1915.4,1.32093842]
[1742210837904,6.45519,1915.5,1915.4,2.36518842]
[1742210838205,6.45519,1915.5,1915.4,1.32093842]
[1742210841403,1.04425,1915.4,1915.3,40.8]
[1742210841705,3.21775,1915.4,1915.3,40.8]
[1742210843006,3.21775,1915.4,1915.3,41.8443]
[1742210843608,4.08834255,1915.4,1915.3,41.8443]
[1742210844108,4.20259851,1915.4,1915.3,41.8443]
[1742210844308,5.07313158,1915.4,1915.3,41.8443]
[1742210844507,2.43244851,1915.4,1915.3,43.263]
[1742210844709,0.98484851,1915.4,1915.3,46.4708]
[1742210845006,4.032,1915.5,1915.4,1.04425]
[1742210845201,4.032,1915.5,1915.4,2.46295]
[1742210845409,6.42954851,1915.5,1915.4,2.46295]
[1742210851498,0.98484851,1915.5,1915.4,2.46295]
[1742210851904,3.351,1915.6,1915.5,1.04419]
[1742210852108,3.351,1915.6,1915.5,3.10969]
[1742210852312,4.22136375,1915.6,1915.5,3.10969]
[1742210852503,3.351,1915.6,1915.5,3.10969]
[1742210852702,4.33584851,1915.6,1915.5,3.10969]
[1742210852903,0.98484851,1915.6,1915.5,3.10969]
[1742210853314,2.30634851,1915.6,1915.5,3.10969]
[1742210853610,1.3215,1915.6,1915.5,3.10969]
[1742210854410,2.1919877,1915.6,1915.5,3.10969]
[1742210854912,3.17683621,1915.6,1915.5,3.10969]
[1742210856203,1.85533621,1915.6,1915.5,3.10969]
[1742210856512,7.33837463,1915.7,1915.6,1.04414]
[1742210856712,7.33837463,1915.7,1915.6,2.43324]
[1742210859015,8.38245463,1915.7,1915.6,2.43324]
[1742210859922,1.04414,1915.6,1915.5,4.94025]
[1742210860213,3.9228277,1915.6,1915.5,4.25195]
[1742210860413,4.90767621,1915.6,1915.5,4.25195]
[1742210865323,1.0443,1915.4,1915.3,3.2078]
[1742210865619,4.3953,1915.4,1915.3,4.6095]
[1742210865808,5.2657877,1915.4,1915.3,4.6095]
[1742210866012,8.23733621,1915.4,1915.3,4.6095]
[1742210866822,8.23733621,1915.4,1915.3,5.6538]
[1742210869220,7.19303621,1915.4,1915.3,5.6538]
[1742210869624,8.23728621,1915.4,1915.3,5.6538]
[1742210870023,7.19303621,1915.4,1915.3,5.6538]
[1742210870325,8.23728621,1915.4,1915.3,5.6538]
[1742210870626,7.19303621,1915.4,1915.3,5.6538]
[1742210871715,7.19303621,1915.4,1915.3,46.4538]
[1742210874729,8.23728621,1915.4,1915.3,46.4538]
[1742210875026,8.23728621,1915.4,1915.3,3.2078]
[1742210875330,1.0443,1915.3,1915.2,2.46579842]
[1742210875531,4.05084851,1915.3,1915.2,2.46579842]
[1742210877226,4.05084851,1915.3,1915.2,1.42143842]
[1742210877428,4.05084851,1915.3,1915.2,0.00783842]
[1742210877634,4.921344,1915.3,1915.2,0.00783842]
[1742210878229,4.921344,1915.3,1915.2,1.38493842]
[1742210878434,4.92123392,1915.3,1915.2,0.00783842]
[1742210880726,4.92123392,1915.3,1915.2,1.05219842]
[1742210880927,3.39454851,1915.3,1915.2,2.37909842]
[1742210882622,2.35024851,1915.3,1915.2,2.37909842]
[1742210882830,3.39454851,1915.3,1915.2,2.37909842]
[1742210883729,2.35024851,1915.3,1915.2,2.37909842]
[1742210884635,3.39454851,1915.3,1915.2,2.37909842]
[1742210887339,2.35024851,1915.3,1915.2,2.37909842]
[1742210887639,2.35024851,1915.3,1915.2,3.06929842]
[1742210890737,1.3654,1915.3,1915.2,3.06929842]
[1742210890930,2.4097,1915.3,1915.2,3.06929842]
[1742210891130,3.28036361,1915.3,1915.2,1.33473842]
[1742210891335,3.28036361,1915.3,1915.2,0.00783842]
[1742210891527,2.23606361,1915.3,1915.2,2.44159842]
[1742210891735,3.22091212,1915.3,1915.2,2.44159842]
[1742210892341,1.85551212,1915.3,1915.2,2.44159842]
[1742210892543,0.98484851,1915.3,1915.2,2.44159842]
[1742210892745,0.87066361,1915.3,1915.2,2.44159842]
[1742210893542,3.26081212,1915.3,1915.2,2.44159842]
[1742210897947,6.61181212,1915.3,1915.2,2.44159842]
[1742210898849,0.98484851,1915.3,1915.2,2.44159842]
[1742210899652,5.71364851,1915.4,1915.3,1.0443]
[1742210899954,5.71364851,1915.4,1915.3,3.1149]
[1742210901053,4.7288,1915.4,1915.3,3.1149]
[1742210902346,1.3778,1915.4,1915.3,3.1149]
[1742210902554,0.98484851,1915.5,1915.4,1.04425]
[1742210902755,0.98484851,1915.5,1915.4,2.49505]
[1742210903049,1.85583237,1915.5,1915.4,3.17135]
[1742210903450,0.98484851,1915.5,1915.4,3.17135]
[1742210904755,6.43824851,1915.6,1915.5,1.04419]
[1742210904954,6.43824851,1915.6,1915.5,5.69359]
[1742210905452,4.33584851,1915.6,1915.5,5.69359]
[1742210905759,3.351,1915.6,1915.5,5.69359]
[1742210905961,4.7964,1915.6,1915.5,5.69359]
[1742210907057,4.7964,1915.6,1915.5,46.49359]
[1742210909260,4.7964,1915.6,1915.5,43.28579]
[1742210909559,4.7964,1915.6,1915.5,46.49359]
[1742210915064,5.77971747,1915.6,1915.5,5.69359]
[1742210915763,6.82385747,1915.6,1915.5,4.25199]
[1742210915962,6.82385747,1915.6,1915.5,3.2078]
[1742210916567,6.82385747,1915.6,1915.5,4.25199]
[1742210916768,6.82385747,1915.6,1915.5,3.2078]
[1742210917065,7.69309776,1915.6,1915.5,3.2078]
[1742210918266,6.64895776,1915.6,1915.5,4.25199]
[1742210918769,6.64895776,1915.6,1915.5,5.63689]
[1742210918971,7.69309776,1915.6,1915.5,5.63689]
[1742210920069,6.64895776,1915.6,1915.5,5.63689]
[1742210920271,7.69309776,1915.6,1915.5,5.63689]
[1742210923172,6.64895776,1915.6,1915.5,5.63689]
[1742210923969,6.64895776,1915.6,1915.5,6.33329]
[1742210924967,6.64895776,1915.6,1915.5,5.63689]
[1742210925169,7.69309776,1915.6,1915.5,5.63689]
[1742210925878,6.64895776,1915.6,1915.5,5.63689]
[1742210927978,7.69309776,1915.6,1915.5,5.63689]
[1742210928481,7.69309776,1915.6,1915.5,4.5927]
[1742210928677,7.69309776,1915.6,1915.5,3.2078]
[1742210928874,1.04426,1915.4,1915.3,4.25207]
[1742210929075,4.39425,1915.4,1915.3,4.25206]
[1742210929377,4.22075604,1915.4,1915.3,4.25206]
[1742210929588,6.60590604,1915.4,1915.3,5.65266]
[1742210929780,7.58922351,1915.4,1915.3,3.2078]
[1742210929975,1.0443,1915.3,1915.2,40.80783842]
[1742210930170,3.25595604,1915.3,1915.2,40.80783842]
[1742210930375,3.25595604,1915.3,1915.2,41.85218842]
[1742210930573,4.23927351,1915.3,1915.2,41.85218842]
[1742210931082,3.19497351,1915.3,1915.2,41.85218842]
[1742210931281,4.23927351,1915.3,1915.2,43.17428842]
[1742210933979,4.23927351,1915.3,1915.2,41.85218842]
[1742210934581,1.85407351,1915.3,1915.2,41.85218842]
[1742210934884,0.98331747,1915.3,1915.2,43.94738842]
[1742210936885,4.15159747,1915.4,1915.3,2.4483]
[1742210937189,5.02177468,1915.4,1915.3,2.4483]
[1742210937894,3.97749468,1915.4,1915.3,2.4483]
[1742210938084,3.97751176,1915.4,1915.3,2.4483]
[1742210938487,3.10731747,1915.4,1915.3,2.4483]
[1742210938687,3.97753106,1915.4,1915.3,2.4483]
[1742210939685,5.02178106,1915.4,1915.3,2.4483]
[1742210940585,3.97753106,1915.4,1915.3,2.4483]
[1742210940787,3.27443106,1915.4,1915.3,2.4483]
[1742210940988,4.33331747,1915.4,1915.3,5.6561]
[1742210941185,0.98331747,1915.4,1915.3,6.3529]
[1742210941587,3.35,1915.5,1915.4,1.04425]
[1742210941785,3.35,1915.5,1915.4,3.18085]
[1742210941991,4.33331747,1915.6,1915.5,1.04419]
[1742210942182,4.33331747,1915.6,1915.5,5.69639]
[1742210942589,0.98331747,1915.6,1915.5,5.69639]
[1742210943396,34.37853842,1915.7,1915.6,1.04414]
[1742210943589,34.37853842,1915.7,1915.6,2.42284]
[1742210943789,35.36292345,1915.7,1915.6,2.42284]
[1742210944488,35.36292345,1915.7,1915.6,43.22284]
[1742210944685,34.17735444,1915.7,1915.6,43.22284]
[1742210947599,34.17735444,1915.7,1915.6,2.42284]
[1742210948300,34.17735444,1915.7,1915.6,3.08174]
[1742210950897,34.17735444,1915.7,1915.6,2.42284]
[1742210951100,35.53655444,1915.7,1915.6,2.42284]
[1742210951704,34.66642345,1915.7,1915.6,2.42284]
[1742210954004,31.31642345,1915.7,1915.6,2.42284]
[1742210958502,29.95722345,1915.7,1915.6,2.42284]
[1742210959104,31.40992345,1915.7,1915.6,2.42284]
[1742210959406,30.42553842,1915.7,1915.6,2.42284]
[1742210959615,1.46053842,1915.7,1915.6,2.42284]
[1742210961805,0.00783842,1915.7,1915.6,2.42284]
[1742210963101,1.42183842,1915.7,1915.6,2.42284]
[1742210963507,0.6581,1915.9,1915.8,1.04403]
[1742210963704,2.0721,1915.9,1915.8,1.04403]
[1742210964110,2.0721,1915.9,1915.8,2.42553]
[1742210966807,2.0721,1915.9,1915.8,43.22553]
[1742210968005,3.05561718,1915.9,1915.8,43.22553]
[1742210969313,2.0721,1915.9,1915.8,43.22553]
[1742210970614,2.94212046,1915.9,1915.8,43.22553]
[1742210970817,2.0721,1915.9,1915.8,43.22553]
[1742210971914,2.94218491,1915.9,1915.8,43.22553]
[1742210972415,3.92570209,1915.9,1915.8,43.22553]
[1742210974721,3.05561718,1915.9,1915.8,43.22553]
[1742210975218,2.0721,1915.9,1915.8,43.22553]
[1742210981015,2.0721,1915.9,1915.8,2.42553]
[1742210981421,2.0721,1915.9,1915.8,43.22553]
[1742210981720,2.0721,1915.9,1915.8,1.04403]
[1742210981921,2.94223802,1915.9,1915.8,1.04403]
[1742210982128,3.9257552,1915.9,1915.8,1.04403]
[1742210982322,3.9257552,1915.9,1915.8,2.36173]
[1742210983324,3.05561718,1915.9,1915.8,2.36173]
[1742210983523,2.94223802,1915.9,1915.8,2.36173]
[1742210983920,3.9257552,1915.9,1915.8,2.36173]
[1742210986425,4.6281552,1915.9,1915.8,2.36173]
[1742210988121,3.9257552,1915.9,1915.8,2.36173]
[1742210988322,3.9257552,1915.9,1915.8,3.01973]
[1742210989641,3.05561718,1915.9,1915.8,3.01973]
[1742210991124,3.92671941,1915.9,1915.8,3.01973]
[1742210991325,3.05561718,1915.9,1915.8,3.01973]
[1742210991823,2.0721,1915.9,1915.8,3.01973]
[1742210992831,3.05561718,1915.9,1915.8,3.01973]
[1742210993031,3.92682648,1915.9,1915.8,3.01973]
[1742210997536,3.92682648,1915.9,1915.8,43.81973]
[1742210998535,4.59752648,1915.9,1915.8,43.81973]
[1742210998736,4.59752648,1915.9,1915.8,43.16173]
[1742211000731,3.72631718,1915.9,1915.8,43.16173]
[1742211000940,2.7428,1915.9,1915.8,43.16173]
[1742211002637,2.0721,1915.9,1915.8,43.16173]
[1742211004240,1.8625649,1916.0,1915.9,1.04397]
[1742211004429,1.85685884,1916.2,1915.9,2.7651]
[1742211004740,3.21325884,1916.2,1916.1,1.04387]
[1742211004932,3.21325884,1916.2,1916.1,41.84387]
[1742211005236,3.21325884,1916.2,1916.1,45.70807]
[1742211005537,2.2276093,1916.2,1916.1,45.70807]
[1742211005737,29.63463842,1916.3,1916.2,1.04381]
[1742211005938,29.63463842,1916.3,1916.2,2.46151]
[1742211005939,31.86168598,1916.3,1916.2,2.46151]
[1742211006433,30.99103842,1916.3,1916.2,2.46151]
[1742211006638,31.86122605,1916.3,1916.2,2.46151]
[1742211007437,30.99103842,1916.3,1916.2,2.46151]
[1742211007640,2.03703842,1916.3,1916.2,2.46151]
[1742211012632,2.03703842,1916.3,1916.2,1.04381]
[1742211013038,2.03703842,1916.3,1916.2,2.47401]
[1742211017343,2.90700421,1916.3,1916.2,2.47401]
[1742211017541,3.95076421,1916.3,1916.2,2.47401]
[1742211017732,2.90700421,1916.3,1916.2,2.47401]
[1742211018047,3.08079842,1916.3,1916.2,1.04381]
[1742211018237,3.95076421,1916.3,1916.2,1.04381]
[1742211018437,2.90700421,1916.3,1916.2,1.04381]
[1742211018744,2.90700421,1916.3,1916.2,2.47291]
[1742211019144,3.95076421,1916.3,1916.2,1.04381]
[1742211019947,3.08079842,1916.3,1916.2,1.04381]
[1742211020345,2.03703842,1916.3,1916.2,1.04381]
[1742211020543,2.03703842,1916.3,1916.2,2.40851]
[1742211020744,3.08079842,1916.3,1916.2,2.40851]
[1742211021449,3.80369842,1916.3,1916.2,2.40851]
[1742211022744,3.80369842,1916.3,1916.2,1.04381]
[1742211022943,1.04381,1916.2,1916.1,4.25164]
[1742211023143,1.04392,1916.0,1915.9,41.84393]
[1742211023546,4.39092,1916.0,1915.9,41.84393]
[1742211023854,1.04397,1915.9,1915.8,3.2078]
[1742211024149,3.84357,1915.9,1915.8,1.04398]
[1742211024452,3.84357,1915.9,1915.8,41.84398]
[1742211025152,2.7996,1915.9,1915.8,41.84398]
[1742211025448,2.7996,1915.9,1915.8,43.24508]
[1742211025642,2.7996,1915.9,1915.8,43.94768]
[1742211026849,3.84357,1915.9,1915.8,43.94768]
[1742211027048,3.84357,1915.9,1915.8,43.24508]
[1742211027854,2.7996,1915.9,1915.8,43.24508]
[1742211028145,3.84357,1915.9,1915.8,43.24508]
[1742211032744,3.84357,1915.9,1915.8,40.8]
[1742211032944,3.84357,1915.9,1915.8,1.04403]
[1742211032945,3.84361,1915.9,1915.8,1.04403]
[1742211033355,1.04403,1915.8,1915.7,2.44974]
[1742211033652,1.04408,1915.7,1915.6,4.2519]
[1742211033852,1.04408,1915.7,1915.6,45.0519]
[1742211034054,2.35258,1915.7,1915.6,45.0519]
[1742211034252,2.35258,1915.7,1915.6,46.4576]
[1742211035155,2.35258,1915.7,1915.6,45.4135]
[1742211035545,1.04414,1915.6,1915.5,1.04416]
[1742211035742,7.11994,1915.6,1915.5,2.43346]
[1742211035948,7.11994,1915.6,1915.5,43.23346]
[1742211036851,7.11994,1915.6,1915.5,42.1893]
[1742211037046,7.98885172,1915.6,1915.5,40.8]
[1742211037549,1.04419,1915.5,1915.4,2.43355]
[1742211037849,2.38119,1915.5,1915.4,1.3893]
[1742211038055,2.38119,1915.5,1915.4,42.1893]
[1742211038851,2.38119,1915.5,1915.4,43.23355]
[1742211041148,1.337,1915.5,1915.4,43.23355]
[1742211041755,2.38119,1915.5,1915.4,43.23355]
[1742211042855,5.08388,1915.6,1915.5,1.04419]
[1742211043052,5.08384,1915.6,1915.5,2.42839]
[1742211043249,4.0397,1915.6,1915.5,2.42839]
[1742211043657,3.347,1915.6,1915.5,43.22839]
[1742211044255,1.04403,1915.9,1915.8,1.04403]
[1742211044566,5.75913,1915.9,1915.7,1.04404]
[1742211044754,5.75913,1915.9,1915.8,2.35613]
[1742211044954,4.39103,1915.9,1915.8,2.35613]
[1742211045353,4.39103,1915.9,1915.8,1.3121]
[1742211045654,3.347,1915.9,1915.8,2.35613]
[1742211047853,4.39097,1915.9,1915.8,2.35613]
[1742211048063,4.39097,1915.9,1915.8,1.3121]
[1742211048757,4.39097,1915.9,1915.8,2.35613]
[1742211048953,3.347,1915.9,1915.8,2.35613]
[1742211049355,4.39097,1915.9,1915.8,2.35613]
[1742211050759,4.39097,1915.9,1915.8,1.3121]
[1742211051157,5.2589835,1915.9,1915.8,1.3121]
[1742211051864,1.04408,1915.7,1915.6,0.706]
[1742211052061,1.04414,1915.6,1915.5,1.4175]
[1742211052261,1.71394,1915.6,1915.5,1.4175]
[1742211054860,1.04419,1915.5,1915.4,40.8]
[1742211055060,5.09249,1915.5,1915.4,40.8]
[1742211055261,1.04425,1915.4,1915.3,1.3211]
[1742211055862,1.0443,1915.3,1915.2,0.00783842]
[1742211056160,5.0724,1915.3,1915.2,1.37263842]
[1742211056760,5.94223379,1915.3,1915.2,1.37263842]
[1742211057169,5.94223379,1915.3,1915.2,2.41699842]
[1742211057363,5.0724,1915.3,1915.2,2.41699842]
[1742211057563,5.94208775,1915.3,1915.2,2.41699842]
[1742211057868,5.94208775,1915.3,1915.2,1.37263842]
[1742211059062,7.35848775,1915.3,1915.2,1.37263842]
[1742211059767,7.35848775,1915.3,1915.2,2.41699842]
[1742211060372,2.96718775,1915.3,1915.2,2.41699842]
[1742211060568,6.31418775,1915.3,1915.2,2.41699842]
[1742211061164,3.347,1915.3,1915.2,2.41699842]
[1742211061864,3.347,1915.4,1915.3,1.04425]
[1742211062069,4.21621253,1915.4,1915.3,2.41195]
[1742211062270,4.21621253,1915.4,1915.3,3.09305]
[1742211062675,30.00222,1915.5,1915.4,1.04425]
[1742211062970,33.17426345,1915.5,1915.4,2.41195]
[1742211064572,28.958,1915.5,1915.4,2.41195]
[1742211065776,31.44179,1915.5,1915.4,2.41195]
[1742211066271,30.3976,1915.5,1915.4,2.41195]
[1742211066668,28.958,1915.5,1915.4,2.41195]
[1742211069173,30.3258,1915.5,1915.4,2.41195]
[1742211070472,1.3784,1915.8,1915.4,2.41195]
[1742211070473,1.3784,1915.8,1915.7,1.04408]
[1742211070672,5.06363,1915.8,1915.7,1.04408]
[1742211070873,5.93293521,1915.8,1915.7,1.04408]
[1742211071076,1.04408,1915.7,1915.6,1.71401]
[1742211071268,5.93295521,1915.8,1915.7,1.04408]
[1742211071468,5.93295521,1915.8,1915.6,1.71399]
[1742211071970,5.93295521,1915.8,1915.7,1.4285]
[1742211073078,7.28525521,1915.8,1915.7,1.4285]
[1742211073568,7.28525521,1915.8,1915.7,2.47258]
[1742211073878,7.28523521,1915.8,1915.7,2.47258]
[1742211074874,3.93823521,1915.8,1915.7,2.47258]
[1742211075071,6.24120521,1915.8,1915.7,2.47258]
[1742211075471,2.89420521,1915.8,1915.7,2.47258]
[1742211077780,3.93823521,1915.8,1915.7,2.47258]
[1742211077978,2.89420521,1915.8,1915.7,2.47258]
[1742211079779,2.0249,1915.8,1915.7,2.47258]
[1742211081777,3.06893,1915.8,1915.7,1.4285]
[1742211082380,3.06893,1915.8,1915.4,2.61055]
[1742211082381,8.7120788,1915.8,1915.3,3.2078]
[1742211082677,1.04425,1915.4,1915.3,4.94378]
[1742211082980,3.346,1915.4,1915.3,5.62718]
[1742211083479,5.3861,1915.4,1915.3,5.62718]
[1742211084072,6.43035,1915.4,1915.3,5.62718]
[1742211084371,5.3861,1915.4,1915.3,5.62718]
[1742211086080,2.0401,1915.4,1915.3,5.62718]
[1742211087777,3.2078,1915.8,1915.4,1.04425]
[1742211087985,5.3392,1915.7,1915.6,1.04414]
[1742211088480,2.8628384,1915.7,1915.6,1.04414]
[1742211088676,6.20886548,1915.7,1915.6,2.44174]
[1742211088976,5.3392,1915.7,1915.6,2.44174]
[1742211090882,6.38328,1915.7,1915.6,2.44174]
[1742211091279,7.25342462,1915.7,1915.6,2.44174]
[1742211091479,6.20934462,1915.7,1915.6,1.04414]
[1742211091782,5.3392,1915.7,1915.6,2.40994]
[1742211092080,7.25336153,1915.7,1915.6,2.40994]
[1742211092279,6.20928153,1915.7,1915.6,2.40994]
[1742211095483,7.25336153,1915.7,1915.6,2.40994]
[1742211096286,6.20928153,1915.7,1915.6,2.40994]
[1742211097276,6.20928153,1915.7,1915.6,1.04414]
[1742211097482,1.04414,1915.6,1915.5,4.25195]
[1742211097792,1.04425,1915.4,1915.3,4.25207]
[1742211097981,4.39025,1915.4,1915.3,4.25207]
[1742211098396,4.39025,1915.4,1915.3,3.2078]
[1742211098593,5.84125,1915.4,1915.3,3.2078]
[1742211099392,5.84125,1915.4,1915.3,4.2521]
[1742211101396,4.797,1915.4,1915.3,4.2521]
[1742211103287,1.451,1915.4,1915.3,4.2521]
[1742211103492,3.346,1915.4,1915.3,4.2521]
[1742211103996,3.346,1915.4,1915.3,5.697]
[1742211104295,4.6546,1915.5,1915.4,1.04425]
[1742211104487,4.6546,1915.5,1915.4,3.09615]
[1742211105196,3.346,1915.5,1915.4,3.09615]
[1742211105593,4.6743,1915.6,1915.5,1.04419]
[1742211105791,3.346,1915.6,1915.5,5.64149]
[1742211107597,5.3591,1915.7,1915.6,1.04414]
[1742211107987,5.3591,1915.7,1915.6,2.43944]
[1742211109192,6.40318,1915.7,1915.5,3.2078]
[1742211109398,2.1419,1915.6,1915.5,2.43945]
[1742211110094,3.01199983,1915.6,1915.5,2.43945]
[1742211110595,4.05613983,1915.6,1915.5,2.43945]
[1742211111500,4.05613983,1915.6,1915.5,1.04415]
[1742211111796,1.04419,1915.5,1915.4,1.04423]
[1742211111993,5.74319,1915.5,1915.4,1.04423]
[1742211112191,5.74319,1915.5,1915.3,5.3492]
[1742211112192,1.04425,1915.4,1915.3,4.25205]
[1742211112391,3.26753855,1915.4,1915.3,4.25205]
[1742211112897,2.22328855,1915.4,1915.3,4.25205]
[1742211113294,1.353,1915.4,1915.3,4.25205]
[1742211113692,2.22328855,1915.4,1915.3,4.25205]
[1742211114295,1.353,1915.4,1915.3,4.25205]
[1742211116495,2.39725,1915.4,1915.3,3.2078]
[1742211117002,2.39725,1915.4,1915.3,4.2521]
[1742211117499,1.353,1915.4,1915.3,4.2521]
[1742211118300,4.699,1915.4,1915.3,4.2521]
[1742211118703,1.353,1915.4,1915.3,4.2521]
[1742211118903,4.699,1915.4,1915.3,4.2521]
[1742211119699,3.346,1915.4,1915.3,4.2521]
[1742211120606,3.346,1915.4,1915.3,4.9442]
[1742211121206,3.346,1915.4,1915.3,4.2521]
[1742211121610,4.7635,1915.4,1915.3,4.2521]
[1742211123109,5.80775,1915.4,1915.3,4.2521]
[1742211123320,4.7635,1915.4,1915.3,4.2521]
[1742211123709,5.80775,1915.4,1915.3,4.2521]
[1742211124423,4.7635,1915.4,1915.3,4.2521]
[1742211125311,4.7635,1915.4,1915.3,1.0443]
[1742211125707,6.6782757,1915.4,1915.3,1.0443]
[1742211125911,5.80775,1915.4,1915.3,1.0443]
[1742211126104,6.67829261,1915.4,1915.3,1.0443]
[1742211126512,4.7635,1915.4,1915.3,1.0443]
[1742211126713,5.80775,1915.4,1915.3,1.0443]
[1742211126910,4.7635,1915.4,1915.3,1.0443]
[1742211128700,5.4267,1915.4,1915.3,1.0443]
[1742211128999,6.47095,1915.4,1915.3,1.0443]
[1742211129416,7.3415161,1915.4,1915.3,1.0443]
[1742211129606,6.2972661,1915.4,1915.3,1.0443]
[1742211130108,5.4267,1915.4,1915.3,1.0443]
[1742211130817,6.47095,1915.4,1915.3,1.0443]
[1742211131614,6.29729976,1915.4,1915.3,1.0443]
[1742211131814,7.34154976,1915.4,1915.3,1.0443]
[1742211132318,6.47095,1915.4,1915.3,1.0443]
[1742211132714,5.4267,1915.4,1915.2,1.45093842]
[1742211132916,3.0869,1915.3,1915.2,0.00783842]